fUSD/lending_fUSD_20241223
["ID","MTS","AMOUNT","RATE_DAILY","PERIOD"]
[346441498,1734977467206,-1430.71,0.00018076,2]
[346441499,1734977467216,-500.0,0.00018076,2]
[346441500,1734977467226,-500.0,0.00018076,2]
[346441501,1734977467236,-1370.06,0.00018076,2]
[346441502,1734977467246,-2445.7,0.00018076,2]
[346441503,1734977467256,-500.0,0.00018076,2]
[346441504,1734977467266,-500.0,0.00018076,2]
[346441505,1734977467276,-2197.08,0.00018076,2]
[346441506,1734977467285,-926.71,0.00018076,2]
[346441507,1734977467295,-500.0,0.00018076,2]
[346441508,1734977467305,-500.0,0.00018076,2]
[346441509,1734977467315,-500.0,0.00018076,2]
[346441510,1734977467325,-2529.93,0.00018076,2]
[346441511,1734977467336,-500.0,0.00018076,2]
[346441512,1734977467346,-702.39,0.00018076,2]
[346441513,1734977467363,-1110.16,0.00018076,2]
[346441514,1734977467383,-500.0,0.00018076,2]
[346441515,1734977467394,-756.96,0.00018076,2]
[346441516,1734977467406,-436.66909127,0.00018076,2]
[346441517,1734977467416,-1635.62,0.00018076,2]
[346441518,1734977467427,-500.0,0.00018076,2]
[346441519,1734977467437,-1182.7,0.00018076,2]
[346441520,1734977467446,-2240.44,0.00018076,2]
[346441521,1734977467457,-1339.86,0.00018076,2]
[346441522,1734977467474,-500.0,0.00018076,2]
[346441523,1734977467496,-500.0,0.00018076,2]
[346441524,1734977467512,-1193.2,0.00018076,2]
[346441525,1734977467522,-500.0,0.00018076,2]
[346441526,1734977467532,-1241.02,0.00018076,2]
[346441527,1734977467542,-1093.24,0.00018076,2]
[346441528,1734977467552,-652.39,0.00018076,2]
[346441529,1734977467562,-500.0,0.00018076,2]
[346441530,1734977467572,-500.0,0.00018076,2]
[346441531,1734977467581,-1295.73,0.00018076,2]
[346441532,1734977467592,-721.03,0.00018076,2]
[346441533,1734977467602,-719.15,0.00018076,2]
[346441534,1734977467613,-500.0,0.00018076,2]
[346441535,1734977467623,-500.0,0.00018076,2]
[346441536,1734977467633,-500.0,0.00018076,2]
[346441537,1734977467643,-709.5,0.00018076,2]
[346441538,1734977467653,-500.0,0.00018076,2]
[346441539,1734977467663,-500.0,0.00018076,2]
[346441540,1734977467674,-500.0,0.00018076,2]
[346441541,1734977467684,-500.0,0.00018076,2]
[346441542,1734977467694,-500.0,0.00018076,2]
[346441543,1734977467704,-989.39,0.00018076,2]
[346441544,1734977467714,-704.84,0.00018076,2]
[346441545,1734977467723,-1079.16,0.00018076,2]
[346441546,1734977467733,-519.67,0.00018076,2]
[346441547,1734977467743,-500.0,0.00018076,2]
[346441548,1734977467753,-658.29,0.00018076,2]
[346441549,1734977467762,-602.82,0.00018076,2]
[346441550,1734977467772,-1232.96,0.00018076,2]
[346441551,1734977467781,-555.27,0.00018076,2]
[346441552,1734977467791,-563.59,0.00018076,2]
[346441553,1734977467801,-500.0,0.00018076,2]
[346441554,1734977467811,-500.0,0.00018076,2]
[346441555,1734977467820,-500.0,0.00018076,2]
[346441556,1734977467831,-155.940262,0.00018076,2]
[346441557,1734977467840,-3140.296248,0.00018076,2]
[346441558,1734977467850,-500.0,0.00018076,2]
[346441559,1734977467859,-3682.935488,0.00018076,2]
[346441560,1734977467869,-500.0,0.00018076,2]
[346441561,1734977467879,-500.0,0.00018076,2]
[346441562,1734977467889,-2607.69,0.00018076,2]
[346441563,1734977467899,-672.78,0.00018076,2]
[346441564,1734977467909,-500.0,0.00018076,2]
[346441565,1734977467919,-500.0,0.00018076,2]
[346441566,1734977467929,-500.0,0.00018076,2]
[346441567,1734977467940,-500.0,0.00018076,2]
[346441568,1734977467949,-769.37,0.00018076,2]
[346441569,1734977467960,-960.87,0.00018076,2]
[346441570,1734977467969,-2112.24,0.00018076,2]
[346441571,1734977467979,-2393.81,0.00018076,2]
[346441572,1734977467988,-498.24599728,0.00018076,2]
[346441573,1734977467998,-1014.82,0.00018076,2]
[346441574,1734977468008,-594.45,0.00018076,2]
[346441575,1734977468017,-1419.02,0.00018076,2]
[346441576,1734977468027,-500.0,0.00018076,2]
[346441577,1734977468037,-1419.08,0.00018076,2]
[346441578,1734977468046,-207.70703582,0.00018076,2]
[346441579,1734977468055,-2167.38,0.00018076,2]
[346441580,1734977468065,-801.81,0.00018076,2]
[346441581,1734977468075,-894.04,0.00018076,2]
[346441582,1734977468084,-645.57,0.00018076,2]
[346441583,1734977468094,-500.0,0.00018076,2]
[346441584,1734977468103,-572.16,0.00018076,2]
[346441585,1734977468114,-643.08,0.00018076,2]
[346441586,1734977468123,-579.87,0.00018076,2]
[346441587,1734977468359,-500.0,0.00018076,2]
[346441588,1734977468395,-500.0,0.00018076,2]
[346441589,1734977468405,-1068.99,0.00018076,2]
[346441590,1734977468415,-500.0,0.00018076,2]
[346441591,1734977468424,-625.16,0.00018076,2]
[346441592,1734977468434,-1121.95,0.00018076,2]
[346441593,1734977468443,-748.78,0.00018076,2]
[346441594,1734977468452,-713.97,0.00018076,2]
[346441595,1734977468462,-500.0,0.00018076,2]
[346441596,1734977468474,-549.1,0.00018076,2]
[346441597,1734977468483,-500.0,0.00018076,2]
[346441598,1734977468492,-500.0,0.00018076,2]
[346441599,1734977468501,-522.13,0.00018076,2]
[346441600,1734977468510,-500.0,0.00018076,2]
[346441601,1734977468519,-917.34,0.00018076,2]
[346441602,1734977468528,-785.03,0.00018076,2]
[346441603,1734977468538,-647.69382681,0.00018076,2]
[346441604,1734977468548,-1517.3,0.00018076,2]
[346441605,1734977468557,-200.0,0.00018076,2]
[346441606,1734977468567,-552.09,0.00018076,2]
[346441607,1734977468576,-706.35,0.00018076,2]
[346441608,1734977468585,-625.49,0.00018076,2]
[346441609,1734977468595,-739.73,0.00018076,2]
[346441610,1734977468604,-861.58,0.00018076,2]
[346441611,1734977468613,-1490.89,0.00018076,2]
[346441612,1734977468622,-1403.17,0.00018076,2]
[346441613,1734977468631,-589.47,0.00018076,2]
[346441614,1734977468641,-500.0,0.00018076,2]
[346441615,1734977468650,-2140.16,0.00018076,2]
[346441616,1734977468659,-500.0,0.00018076,2]
[346441617,1734977468668,-551.41,0.00018076,2]
[346441618,1734977468677,-1363.82,0.00018076,2]
[346441619,1734977468687,-1664.37,0.00018076,2]
[346441620,1734977468696,-969.86,0.00018076,2]
[346441621,1734977468705,-500.0,0.00018076,2]
[346441622,1734977468714,-1789.77,0.00018076,2]
[346441623,1734977468724,-1244.19,0.00018076,2]
[346441624,1734977468734,-500.0,0.00018076,2]
[346441625,1734977468744,-500.0,0.00018076,2]
[346441626,1734977468753,-500.0,0.00018076,2]
[346441627,1734977468762,-1475.87,0.00018076,2]
[346441628,1734977468772,-2247.13,0.00018076,2]
[346441629,1734977468781,-624.53,0.00018076,2]
[346441630,1734977468791,-500.0,0.00018076,2]
[346441631,1734977468800,-500.0,0.00018076,2]
[346441632,1734977468809,-1082.57,0.00018076,2]
[346441633,1734977468819,-500.0,0.00018076,2]
[346441634,1734977468828,-1186.82,0.00018076,2]
[346441635,1734977468837,-1277.1,0.00018076,2]
[346441636,1734977468846,-1141.59,0.00018076,2]
[346441637,1734977468856,-2346.74,0.00018076,2]
[346441638,1734977468865,-3276.11,0.00018076,2]
[346441639,1734977468874,-500.0,0.00018076,2]
[346441640,1734977468883,-13372.21,0.00018076,2]
[346441641,1734977468892,-500.0,0.00018076,2]
[346441642,1734977468902,-4163.66,0.00018076,2]
[346441643,1734977468912,-500.0,0.00018076,2]
[346441644,1734977468922,-3360.61,0.00018076,2]
[346441645,1734977468931,-584.7,0.00018076,2]
[346441646,1734977468941,-758.01,0.00018076,2]
[346441647,1734977468950,-3478.58,0.00018076,2]
[346441648,1734977468959,-1216.02,0.00018076,2]
[346441649,1734977468969,-608.25,0.00018076,2]
[346441650,1734977468978,-861.45,0.00018076,2]
[346441651,1734977468988,-1445.85,0.00018076,2]
[346441652,1734977468997,-560.75,0.00018076,2]
[346441653,1734977469006,-572.18,0.00018076,2]
[346441654,1734977469016,-1596.13,0.00018076,2]
[346441655,1734977469025,-2322.96,0.00018076,2]
[346441656,1734977469034,-4292.59,0.00018076,2]
[346441657,1734977469043,-500.0,0.00018076,2]
[346441658,1734977469052,-876.25,0.00018076,2]
[346441659,1734977469062,-6853.72,0.00018076,2]
[346441660,1734977469071,-608.36,0.00018076,2]
[346441661,1734977469080,-500.0,0.00018076,2]
[346441662,1734977469089,-906.5,0.00018076,2]
[346441663,1734977469099,-5880.72,0.00018076,2]
[346441664,1734977469108,-805.83,0.00018076,2]
[346441665,1734977469117,-888.62,0.00018076,2]
[346441666,1734977469127,-4265.68,0.00018076,2]
[346441667,1734977469137,-500.0,0.00018076,2]
[346441668,1734977469146,-500.0,0.00018076,2]
[346441669,1734977469157,-500.0,0.00018076,2]
[346441670,1734977469167,-1265.92,0.00018076,2]
[346441671,1734977469176,-869.65,0.00018076,2]
[346441672,1734977469185,-2294.66,0.00018076,2]
[346441673,1734977469195,-1316.52,0.00018076,2]
[346441674,1734977469204,-361.67778235,0.00018076,2]
[346441675,1734977469213,-503.38,0.00018076,2]
[346441676,1734977469222,-567.05,0.00018076,2]
[346441677,1734977469231,-2176.58,0.00018076,2]
[346441678,1734977469242,-606.69,0.00018076,2]
[346441679,1734977469251,-500.0,0.00018076,2]
[346441680,1734977469261,-500.0,0.00018076,2]
[346441681,1734977469270,-4233.89,0.00018076,2]
[346441682,1734977469279,-2729.26,0.00018076,2]
[346441683,1734977469289,-5249.2,0.00018076,2]
[346441684,1734977469298,-5067.96,0.00018076,2]
[346441685,1734977469307,-1752.35,0.00018076,2]
[346441686,1734977469316,-575.93,0.00018076,2]
[346441687,1734977469325,-3195.73,0.00018076,2]
[346441688,1734977469335,-500.0,0.00018076,2]
[346441689,1734977469344,-531.65,0.00018076,2]
[346441690,1734977469353,-500.0,0.00018076,2]
[346441691,1734977469363,-464.57758625,0.00018076,2]
[346441692,1734977469372,-1763.57,0.00018076,2]
[346441693,1734977469382,-1281.31,0.00018076,2]
[346441694,1734977469391,-4486.02,0.00018076,2]
[346441695,1734977469401,-429.26101013,0.00018076,2]
[346441696,1734977469411,-537.78,0.00018076,2]
[346441697,1734977469421,-569.05,0.00018076,2]
[346441698,1734977469430,-501.67642416,0.00018076,2]
[346441699,1734977469440,-848.0,0.00018076,2]
[346441700,1734977469449,-14046.97,0.00018076,2]
[346441701,1734977469459,-1074.87,0.00018076,2]
[346441702,1734977469474,-500.0,0.00018076,2]
[346441703,1734977469484,-500.0,0.00018076,2]
[346441704,1734977469494,-876.59,0.00018076,2]
[346441705,1734977469503,-786.72,0.00018076,2]
[346441706,1734977469514,-500.0,0.00018076,2]
[346441707,1734977469524,-500.0,0.00018076,2]
[346441708,1734977469533,-1238.05,0.00018076,2]
[346441709,1734977469544,-500.0,0.00018076,2]
[346441710,1734977469554,-500.0,0.00018076,2]
[346441711,1734977469563,-500.0,0.00018076,2]
[346441712,1734977469573,-3992.75,0.00018076,2]
[346441713,1734977469582,-1307.48,0.00018076,2]
[346441714,1734977469591,-3075.53,0.00018076,2]
[346441715,1734977469600,-516.72,0.00018076,2]
[346441716,1734977469610,-500.0,0.00018076,2]
[346441717,1734977469619,-19454.18,0.00018076,2]
[346441718,1734977469628,-3415.95,0.00018076,2]
[346441719,1734977469638,-533.62,0.00018076,2]
[346441720,1734977469647,-2974.93,0.00018076,2]
[346441721,1734977469657,-2746.23,0.00018076,2]
[346441722,1734977469667,-500.0,0.00018076,2]
[346441723,1734977469676,-1429.03,0.00018076,2]
[346441724,1734977469686,-4926.68,0.00018076,2]
[346441725,1734977469695,-870.24,0.00018076,2]
[346441726,1734977469704,-500.0,0.00018076,2]
[346441727,1734977469713,-2314.93,0.00018076,2]
[346441728,1734977469723,-500.0,0.00018076,2]
[346441729,1734977469732,-686.85,0.00018076,2]
[346441730,1734977469741,-1561.76,0.00018076,2]
[346441731,1734977469750,-500.0,0.00018076,2]
[346441732,1734977469760,-706.18,0.00018076,2]
[346441733,1734977469769,-794.41,0.00018076,2]
[346441734,1734977469778,-3965.64,0.00018076,2]
[346441735,1734977469788,-500.0,0.00018076,2]
[346441736,1734977469797,-3744.17,0.00018076,2]
[346441737,1734977469806,-500.0,0.00018076,2]
[346441738,1734977469815,-3529.73,0.00018076,2]
[346441739,1734977469824,-675.11,0.00018076,2]
[346441740,1734977469833,-538.34,0.00018076,2]
[346441741,1734977469842,-796.58,0.00018076,2]
[346441742,1734977469851,-3727.03,0.00018076,2]
[346441743,1734977469861,-5046.59,0.00018076,2]
[346441744,1734977469870,-4391.32,0.00018076,2]
[346441745,1734977469879,-903.04,0.00018076,2]
[346441746,1734977469888,-535.74,0.00018076,2]
[346441747,1734977469897,-178.37741428,0.00018076,2]
[346441748,1734977469906,-500.0,0.00018076,2]
[346441749,1734977469915,-500.0,0.00018076,2]
[346441750,1734977469924,-2235.69,0.00018076,2]
[346441751,1734977469933,-7413.95,0.00018076,2]
[346441752,1734977469942,-8979.53,0.00018076,2]
[346441753,1734977469951,-500.0,0.00018076,2]
[346441754,1734977469961,-2705.58,0.00018076,2]
[346441755,1734977469969,-12065.2,0.00018076,2]
[346441756,1734977469978,-500.0,0.00018076,2]
[346441757,1734977469987,-1746.39,0.00018076,2]
[346441758,1734977469997,-767.72,0.00018076,2]
[346441759,1734977470006,-500.0,0.00018076,2]
[346441760,1734977470015,-500.0,0.00018076,2]
[346441761,1734977470024,-1044.88,0.00018076,2]
[346441762,1734977470033,-1240.44,0.00018076,2]
[346441763,1734977470042,-1076.04,0.00018076,2]
[346441764,1734977470052,-500.0,0.00018076,2]
[346441765,1734977470061,-1647.96,0.00018076,2]
[346441766,1734977470070,-500.0,0.00018076,2]
[346441767,1734977470079,-6166.83,0.00018076,2]
[346441768,1734977470088,-5101.79,0.00018076,2]
[346441769,1734977470097,-500.0,0.00018076,2]
[346441770,1734977470107,-4805.72,0.00018076,2]
[346441771,1734977470116,-649.1,0.00018076,2]
[346441772,1734977470125,-1067.73,0.00018076,2]
[346441773,1734977470134,-22770.54,0.00018076,2]
[346441774,1734977470143,-500.0,0.00018076,2]
[346441775,1734977470151,-5276.45,0.00018076,2]
[346441776,1734977470161,-500.0,0.00018076,2]
[346441777,1734977470170,-2015.49,0.00018076,2]
[346441778,1734977470179,-500.0,0.00018076,2]
[346441779,1734977470188,-14805.43,0.00018076,2]
[346441780,1734977470197,-2602.05,0.00018077,2]
[346441781,1734977470207,-1801.52,0.00018077,2]
[346441782,1734977470216,-785.45,0.00018077,2]
[346441783,1734977470224,-1714.52,0.00018077,2]
[346441784,1734977470233,-567.68,0.00018077,2]
[346441785,1734977470242,-862.06,0.00018077,2]
[346441786,1734977470251,-1687.29,0.00018077,2]
[346441787,1734977470260,-2928.48,0.00018077,2]
[346441788,1734977470269,-524.73440355,0.00018077,2]
[346441789,1734977470278,-1483.36,0.00018077,2]
[346441790,1734977470286,-3327.2,0.00018077,2]
[346441791,1734977470295,-2194.06,0.00018077,2]
[346441792,1734977470304,-541.0,0.00018077,2]
[346441793,1734977470314,-803.6,0.00018077,2]
[346441794,1734977470324,-500.0,0.00018077,2]
[346441795,1734977470333,-500.0,0.00018077,2]
[346441796,1734977470343,-500.0,0.00018077,2]
[346441797,1734977470352,-2147.03,0.00018077,2]
[346441798,1734977470361,-500.0,0.00018077,2]
[346441799,1734977470370,-1135.53,0.00018077,2]
[346441800,1734977470380,-1066.79,0.00018077,2]
[346441801,1734977470389,-603.923154,0.00018091,2]
[346441802,1734977470398,-500.0,0.00018091,2]
[346441803,1734977470408,-2051.65,0.00018091,2]
[346441804,1734977470417,-2580.2,0.00018091,2]
[346441805,1734977470428,-1026.78,0.00018091,2]
[346441806,1734977470437,-1736.24,0.00018091,2]
[346441807,1734977470446,-2944.79,0.00018091,2]
[346441808,1734977470455,-1851.07,0.00018091,2]
[346441809,1734977470464,-1284.95,0.00018091,2]
[346441810,1734977470477,-781.7,0.00018096,2]
[346441811,1734977470486,-500.0,0.00018096,2]
[346441812,1734977470496,-500.0,0.00018096,2]
[346441813,1734977470506,-500.0,0.00018096,2]
[346441814,1734977470516,-1609.11,0.00018096,2]
[346441815,1734977470525,-500.0,0.00018096,2]
[346441816,1734977470534,-500.0,0.00018096,2]
[346441817,1734977470544,-742.9,0.00018096,2]
[346441818,1734977470554,-500.0,0.00018096,2]
[346441819,1734977470563,-1666.57,0.00018096,2]
[346441820,1734977470573,-1017.2,0.00018096,2]
[346441821,1734977470582,-519.98,0.00018096,2]
[346441822,1734977470592,-500.0,0.00018096,2]
[346441823,1734977470601,-500.0,0.00018096,2]
[346441824,1734977470610,-672.47,0.00018096,2]
[346441825,1734977470713,-500.0,0.00018096,2]
[346441826,1734977470722,-740.1,0.00018096,2]
[346441827,1734977470731,-1456.06,0.00018096,2]
[346441828,1734977470741,-696.57,0.00018096,2]
[346441829,1734977470750,-500.0,0.00018096,2]
[346441830,1734977470759,-500.0,0.00018096,2]
[346441831,1734977470768,-500.0,0.00018096,2]
[346441832,1734977470777,-500.0,0.00018096,2]
[346441833,1734977470786,-500.0,0.00018096,2]
[346441834,1734977470796,-500.0,0.00018096,2]
[346441835,1734977470805,-731.04,0.00018096,2]
[346441836,1734977470814,-609.78,0.00018096,2]
[346441837,1734977470823,-1405.37,0.00018096,2]
[346441838,1734977470832,-500.0,0.00018096,2]
[346441839,1734977470841,-500.0,0.00018096,2]
[346441840,1734977470850,-500.0,0.00018096,2]
[346441841,1734977470859,-500.0,0.00018096,2]
[346441842,1734977470869,-500.0,0.00018096,2]
[346441843,1734977470878,-500.0,0.00018096,2]
[346441844,1734977470887,-581.16,0.00018096,2]
[346441845,1734977470896,-998.09,0.00018096,2]
[346441846,1734977470905,-500.0,0.00018096,2]
[346441847,1734977470915,-500.0,0.00018096,2]
[346441848,1734977470924,-261.8692072,0.00018096,2]
[346441849,1734977470933,-500.0,0.00018096,2]
[346441850,1734977470942,-500.0,0.00018096,2]
[346441851,1734977470951,-1146.41,0.00018096,2]
[346441852,1734977470960,-500.0,0.00018096,2]
[346441853,1734977470969,-1100.77,0.00018096,2]
[346441854,1734977470978,-500.87,0.00018096,2]
[346441855,1734977470987,-500.0,0.00018096,2]
[346441856,1734977470996,-500.0,0.00018096,2]
[346441857,1734977471005,-2287.4,0.00018096,2]
[346441858,1734977471013,-500.0,0.00018096,2]
[346441859,1734977471024,-766.53,0.00018096,2]
[346441860,1734977471033,-1591.35,0.00018096,2]
[346441861,1734977471042,-500.0,0.00018096,2]
[346441862,1734977471052,-1445.05,0.00018096,2]
[346441863,1734977471061,-671.39,0.00018096,2]
[346441864,1734977471071,-2100.23,0.00018096,2]
[346441865,1734977471080,-1420.08,0.00018096,2]
[346441866,1734977471089,-500.0,0.00018096,2]
[346441867,1734977471098,-500.0,0.00018096,2]
[346441868,1734977471107,-532.35,0.00018096,2]
[346441869,1734977471116,-500.0,0.00018096,2]
[346441870,1734977471125,-669.35,0.00018096,2]
[346441871,1734977471134,-500.0,0.00018096,2]
[346441872,1734977471143,-1662.06,0.00018096,2]
[346441873,1734977471152,-500.0,0.00018096,2]
[346441874,1734977471163,-500.0,0.00018096,2]
[346441875,1734977471172,-846.08,0.00018096,2]
[346441876,1734977471181,-1188.6,0.00018096,2]
[346441877,1734977471190,-500.0,0.00018096,2]
[346441878,1734977471199,-3691.46,0.00018096,2]
[346441879,1734977471209,-1681.56,0.00018096,2]
[346441880,1734977471218,-500.0,0.00018096,2]
[346441881,1734977471227,-2421.19,0.00018096,2]
[346441882,1734977471237,-500.0,0.00018096,2]
[346441883,1734977471246,-3595.2,0.00018096,2]
[346441884,1734977471256,-500.0,0.00018096,2]
[346441885,1734977471265,-757.01,0.00018096,2]
[346441886,1734977471275,-573.54,0.00018096,2]
[346441887,1734977471284,-1540.8,0.00018096,2]
[346441888,1734977471293,-1459.75,0.00018096,2]
[346441889,1734977471302,-3193.32,0.00018096,2]
[346441890,1734977471312,-500.0,0.00018096,2]
[346441891,1734977471321,-500.0,0.00018096,2]
[346441892,1734977471331,-1854.32,0.00018096,2]
[346441893,1734977471340,-668.27,0.00018096,2]
[346441894,1734977471349,-500.0,0.00018096,2]
[346441895,1734977471359,-1297.49,0.00018096,2]
[346441896,1734977471368,-1968.64,0.00018096,2]
[346441897,1734977471377,-784.15,0.00018096,2]
[346441898,1734977471387,-500.0,0.00018096,2]
[346441899,1734977471396,-809.62,0.00018096,2]
[346441900,1734977471405,-1454.45,0.00018096,2]
[346441901,1734977471415,-500.0,0.00018096,2]
[346441902,1734977471424,-2757.18,0.00018096,2]
[346441903,1734977471433,-1416.3,0.00018096,2]
[346441904,1734977471443,-636.23,0.00018096,2]
[346441905,1734977471452,-500.0,0.00018096,2]
[346441906,1734977471462,-1287.64,0.00018096,2]
[346441907,1734977471474,-1399.95,0.00018096,2]
[346441908,1734977471483,-307.81054964,0.00018096,2]
[346441909,1734977471492,-150.0,0.00018096,2]
[346441910,1734977471501,-500.0,0.00018096,2]
[346441911,1734977471511,-500.0,0.00018096,2]
[346441912,1734977471521,-1622.77,0.00018096,2]
[346441913,1734977471530,-1488.34,0.00018096,2]
[346441914,1734977471540,-712.1,0.00018096,2]
[346441915,1734977471550,-326.31410981,0.00018096,2]
[346441916,1734977471559,-1531.6,0.00018096,2]
[346441917,1734977471568,-1333.6,0.00018096,2]
[346441918,1734977471577,-500.0,0.00018096,2]
[346441919,1734977471587,-500.0,0.00018096,2]
[346441920,1734977471596,-1975.23,0.00018096,2]
[346441921,1734977471605,-500.0,0.00018096,2]
[346441922,1734977471614,-500.0,0.00018096,2]
[346441923,1734977471623,-500.0,0.00018096,2]
[346441924,1734977471632,-533.17,0.00018096,2]
[346441925,1734977471641,-500.0,0.00018096,2]
[346441926,1734977471650,-500.0,0.00018096,2]
[346441927,1734977471660,-1065.08,0.00018096,2]
[346441928,1734977471669,-500.0,0.00018096,2]
[346441929,1734977471678,-778.09,0.00018096,2]
[346441930,1734977471687,-1710.15,0.00018096,2]
[346441931,1734977471696,-527.63,0.00018096,2]
[346441932,1734977471705,-500.0,0.00018096,2]
[346441933,1734977471715,-1057.48,0.00018096,2]
[346441934,1734977471724,-500.0,0.00018096,2]
[346441935,1734977471733,-731.82,0.00018096,2]
[346441936,1734977471742,-500.0,0.00018096,2]
[346441937,1734977471751,-1922.96,0.00018096,2]
[346441938,1734977471761,-500.0,0.00018096,2]
[346441939,1734977471769,-500.0,0.00018096,2]
[346441940,1734977471778,-602.65,0.00018096,2]
[346441941,1734977471787,-1101.0,0.000181,2]
[346441942,1734977471796,-1101.0,0.000181,2]
[346441943,1734977471805,-1101.0,0.000181,2]
[346441944,1734977471814,-1101.0,0.000181,2]
[346441945,1734977471823,-1101.0,0.000181,2]
[346441946,1734977471832,-1101.0,0.000181,2]
[346441947,1734977471840,-1101.0,0.000181,2]
[346441948,1734977471849,-1101.0,0.000181,2]
[346441949,1734977471858,-1101.0,0.000181,2]
[346441950,1734977471867,-1101.0,0.000181,2]
[346441951,1734977471876,-428.97090145,0.00018105,2]
[346441952,1734977471885,-150.0,0.00018111,2]
[346441953,1734977471894,-13728.98,0.00018176,2]
[346441954,1734977471903,-1527.72,0.00018176,2]
[346441955,1734977471913,-500.0,0.00018176,2]
[346441956,1734977471922,-4710.0,0.00018176,2]
[346441957,1734977471930,-7787.01,0.00018176,2]
[346441958,1734977471939,-11822.31,0.00018176,2]
[346441959,1734977471948,-5028.87,0.00018176,2]
[346441960,1734977471957,-1366.87,0.00018176,2]
[346441961,1734977471966,-4241.28,0.00018176,2]
[346441962,1734977471975,-10756.14,0.00018176,2]
[346441963,1734977471984,-9519.25,0.00018176,2]
[346441964,1734977471993,-10041.78,0.00018176,2]
[346441965,1734977472002,-2589.73,0.00018176,2]
[346441966,1734977472011,-2842.49,0.00018176,2]
[346441967,1734977472020,-10734.95,0.00018176,2]
[346441968,1734977472029,-2918.22,0.00018176,2]
[346441969,1734977472038,-1137.2,0.00018176,2]
[346441970,1734977472047,-1939.55,0.00018176,2]
[346441971,1734977472056,-1549.17,0.00018176,2]
[346441972,1734977472065,-2613.36,0.00018176,2]
[346441973,1734977472074,-4120.86,0.00018176,2]
[346441974,1734977472082,-4034.11,0.00018176,2]
[346441975,1734977472091,-1116.79,0.00018176,2]
[346441976,1734977472100,-2883.46,0.00018176,2]
[346441977,1734977472109,-1681.25,0.00018177,2]
[346441978,1734977472118,-2582.69,0.00018177,2]
[346441979,1734977472126,-1908.15,0.00018177,2]
[346441980,1734977472135,-500.0,0.00018177,2]
[346441981,1734977472144,-500.0,0.00018177,2]
[346441982,1734977472153,-500.0,0.00018177,2]
[346441983,1734977472163,-2509.44,0.00018177,2]
[346441984,1734977472172,-500.0,0.00018177,2]
[346441985,1734977472181,-798.72,0.00018177,2]
[346441986,1734977472190,-2542.39,0.00018177,2]
[346441987,1734977472199,-2833.56,0.00018177,2]
[346441988,1734977472208,-2333.1,0.00018177,2]
[346441989,1734977472218,-1958.84,0.00018177,2]
[346441990,1734977472227,-1607.75,0.00018177,2]
[346441991,1734977472235,-2045.66,0.00018177,2]
[346441992,1734977472244,-1604.12,0.00018177,2]
[346441993,1734977472253,-500.0,0.00018177,2]
[346441994,1734977472263,-2773.66,0.00018177,2]
[346441995,1734977472272,-429.53942949,0.00018177,2]
[346441996,1734977472281,-1343.4,0.00018177,2]
[346441997,1734977472290,-1931.96,0.00018177,2]